[Event "CCT Julius Baer-D3 2024"]
[Site "Online"]
[Date "2024.09.27"]
[Round "1"]
[White "Theodorou, Nikolas"]
[Black "Svane, Frederik"]
[Result "1/2-1/2"]
[ECO "C47"]
[WhiteElo "2619"]
[BlackElo "2640"]
[Annotator "TA"]
[PlyCount "62"]
[EventDate "2024.09.25"]
[EventType "swiss"]
[EventCountry "NET"]
[SourceTitle "playchess.com"]
[Source "ChessBase"]
[SourceQuality "1"]
[TimeControl "600+2"]

{[%evp 16,62,11,10,28,0,0,0,8,0,0,0,0,0,0,0,0,0,0,0,38,46,45,0,0,0,0,0,0,0,0,0,0,0,0,0,0,0,0,0,0,0,0,0,0,0,0,0,0]} 1. e4 {[%emt 0:00:08]} e5 {[%emt 0:00:04]} 2. Nf3 {[%emt 0:00:02]} Nc6 {[%emt 0:00:01]} 3. Nc3 {[%emt 0:00:00]} Nf6 {[%emt 0:00:01]} 4. g3 {[%emt 0:00:01]} d5 {[%emt 0:00:17]} 5. exd5 {[%emt 0:00:00]} Nxd5 {[%emt 0:00:01]} 6. Bg2 {[%emt 0:00:02]} Nxc3 {[%emt 0:00:00]} 7. bxc3 {[%emt 0:00:01]} Bd6 {[%emt 0:00:01]} 8. O-O {[%emt 0:00:01]} O-O {[%emt 0:00:01]} 9. d4 {[%emt 0:00:00]} h6 {[%emt 0:01:33]} 10. Be3 {[%emt 0:00:08]} Re8 {[%emt 0:00:59]} 11. Rb1 {[%emt 0:00:03]} Rb8 {[%emt 0:01:54]} 12. Nd2 {[%emt 0:00:29]} exd4 {[%emt 0:00:04]} 13. cxd4 {[%emt 0:00:23] [#] Bxc6 would now be deadly.} Bf5 {[%emt 0:00:12]} 14. Nc4 {[%emt 0:00:15]} Bf8 {[%emt 0:00:53]} 15. Qd2 {[%emt 0:01:57]} Be4 {[%emt 0:00:01] aiming for ...Bxg2.} 16. d5 {[%emt 0:00:08]} Bxg2 {[%emt 0:00:08]} 17. Kxg2 {[%emt 0:00:00]} Ne5 {[%emt 0:00:11]} 18. Nxe5 {[%emt 0:00:10]} Rxe5 {[%emt 0:00:00]} 19. c4 {[%emt 0:00:04]} b6 {[%emt 0:00:04] The position is equal.} 20. Bd4 {[%emt 0:00:26]} Re8 {[%emt 0:00:02]} 21. Rfe1 {[%emt 0:00:04]} Qd7 {[%emt 0:00:02]} 22. Qd3 {[%emt 0:00:03]} Rbd8 {[%emt 0:00:21]} 23. Rxe8 {[%emt 0:00:36]} Rxe8 {[%emt 0:00:00]} 24. Rd1 {[%emt 0:00:01]} Qg4 {[%emt 0:00:12]} 25. Be3 {[%emt 0:00:16]} Bd6 {[%emt 0:00:09]} 26. h3 {[%emt 0:00:10]} Qd7 {[%emt 0:00:06]} 27. Rd2 {[%emt 0:00:18]} Re7 {[%emt 0:00:07]} 28. Bd4 {[%emt 0:00:11]} Be5 {[%emt 0:00:10]} 29. Be3 {[%emt 0:00:06]} Bd6 {[%emt 0:00:04]} 30. Bd4 {[%emt 0:00:15]} Be5 {[%emt 0:00:02]} 31. Be3 {[%emt 0:00:01]} Bd6 {[%emt 0:00:00] Weighted Error Value: White=0.04 (flawless) /Black=0.03 (flawless) .  Inaccurate:     	White=2     	Black=1      OK:         	White=8     	Black=12     Best:        	---       	Black=1} 1/2-1/2

[Event "CCT Julius Baer-D3 2024"]
[Site "Online"]
[Date "2024.09.27"]
[Round "1"]
[White "Makarian, Rudik"]
[Black "Yilmaz, Mustafa"]
[Result "1-0"]
[ECO "D38"]
[WhiteElo "2550"]
[BlackElo "2587"]
[Annotator "TA"]
[PlyCount "113"]
[EventDate "2024.09.25"]
[EventType "swiss"]
[EventCountry "NET"]
[SourceTitle "playchess.com"]
[Source "ChessBase"]
[SourceQuality "1"]
[TimeControl "600+2"]

{[%evp 44,113,-49,-55,-61,-58,-66,-82,-78,-74,-66,-146,0,-17,-22,-20,-20,-21,-24,-24,-20,-25,-22,-25,-5,-12,0,-43,-72,-60,-33,-74,0,-14,0,-61,0,0,0,0,0,0,37,0,29,27,48,32,121,137,160,149,150,99,112,86,68,0,14,25,20,46,325,312,688,596,1506,1473,1471,1435,1058,975]} 1. d4 {[%emt 0:00:02]} Nf6 {[%emt 0:00:03]} 2. c4 {[%emt 0:00:03]} e6 {[%emt 0:00:01]} 3. Nf3 {[%emt 0:00:02]} d5 {[%emt 0:00:01]} 4. Nc3 {[%emt 0:00:00]} Bb4 {[%emt 0:00:01]} 5. Qa4+ {[%emt 0:00:05]} Nc6 {[%emt 0:00:02]} 6. Bd2 {[%emt 0:00:01] D38: Queen's Gambit Declined: Ragozin Defence (4 Nf3 Bb4).} O-O {[%emt 0:00:47]} 7. a3 $1 {[%emt 0:00:01][%mdl 4] is now more promising than 7.e3.} Bd6 {[%emt 0:00:45]} 8. c5 {[%emt 0:00:33]} Be7 {[%emt 0:00:03]} 9. Bf4 {[%emt 0:00:29]} Nh5 $146 {[%emt 0:02:07]} ({Predecessor:} 9... Bd7 10. Qc2 b6 11. cxb6 axb6 12. e3 Nh5 13. Bg3 g6 14. Be2 Nxg3 15. hxg3 Bf6 {0-1 Makarian,R (2530)-Gukesh,D (2720) Wch Blitz Samarkand 2023 (10)}) 10. e3 {[%emt 0:00:49]} Bd7 {[%emt 0:00:41]} 11. Bb5 {[%emt 0:00:08]} a6 {[%emt 0:00:08]} 12. Bxc6 {[%emt 0:00:02]} Bxc6 {[%emt 0:00:00]} 13. Qc2 {[%emt 0:00:01]} b6 {[%emt 0:00:26]} 14. cxb6 {[%emt 0:00:12]} cxb6 {[%emt 0:00:01]} 15. O-O {[%emt 0:00:05]} Nxf4 {[%emt 0:00:15]} 16. exf4 {[%emt 0:00:02]} Bd6 {[%emt 0:00:19]} 17. Ne5 {[%emt 0:00:09]} Be8 {[%emt 0:00:05]} 18. Qd2 {[%emt 0:00:10]} Rc8 {[%emt 0:00:04]} 19. Rfe1 {[%emt 0:00:04]} f6 {[%emt 0:00:14]} 20. Nf3 {[%emt 0:02:20]} Bf7 {[%emt 0:00:02]} 21. Qd3 {[%emt 0:00:39]} Bxf4 {[%emt 0:00:41]} 22. Qxa6 {[%emt 0:00:02]} Rc6 {[%emt 0:00:11]} 23. g3 {[%emt 0:00:19]} Bh6 {[%emt 0:00:55]} 24. Kg2 {[%emt 0:00:09]} Qd7 {[%emt 0:00:09]} 25. h4 {[%emt 0:00:38]} Rfc8 {[%emt 0:00:14]} 26. Qe2 {[%emt 0:00:02]} Rc4 {[%emt 0:00:17]} 27. Rad1 {[%emt 0:00:09]} ({Better is} 27. a4 $15) 27... R4c6 {[%emt 0:00:09]} (27... Bh5 $1 $17 28. Qc2 (28. Qxe6+ $2 {is the wrong capture.} Qxe6 29. Rxe6 Rxc3 $19) 28... Qc6) 28. Nh2 {[%emt 0:00:05]} g6 {[%emt 0:00:31]} 29. Ng4 {[%emt 0:00:19]} Bg7 {[%emt 0:00:01]} 30. Qf3 {[%emt 0:00:28]} Qd8 {[%emt 0:00:01]} 31. Qe3 {[%emt 0:00:01]} Qf8 {[%emt 0:00:14]} 32. Qf4 {[%emt 0:00:14]} Be8 {[%emt 0:00:11]} 33. Qf3 {[%emt 0:00:23]} h6 {[%emt 0:00:03]} 34. Kg1 {[%emt 0:00:26]} g5 {[%emt 0:00:04]} 35. Ne3 {[%emt 0:00:31]} gxh4 {[%emt 0:00:32]} 36. gxh4 {[%emt 0:00:08]} Kh8 {[%emt 0:00:05]} 37. Kh2 {[%emt 0:00:07]} h5 {[%emt 0:00:07]} ({Black should play} 37... f5 $17) 38. Rg1 {[%emt 0:00:05]} Bh6 {[%emt 0:00:01]} 39. Rg2 {[%emt 0:00:16]} ({White should try} 39. Ng2 $1 $11) 39... R8c7 {[%emt 0:00:06]} (39... Qd6+ $15 40. Kh1 Qf4 41. Qxf4 Bxf4) 40. Rdg1 $11 {[%emt 0:00:02]} Rg7 {[%emt 0:00:02]} 41. Rxg7 {[%emt 0:00:16]} Bxg7 {[%emt 0:00:00]} 42. Ne2 {[%emt 0:00:10]} Bh6 {[%emt 0:00:24]} 43. Kh1 {[%emt 0:00:07]} Rc7 {[%emt 0:00:11]} 44. Nf4 {[%emt 0:00:02]} Bxf4 {[%emt 0:00:10]} 45. Qxf4 {[%emt 0:00:01]} Rg7 {[%emt 0:00:01] [#]} (45... Rc6 $14) 46. Rxg7 $1 $16 {[%emt 0:00:24]} Qxg7 {[%emt 0:00:01] [#]} 47. Qb8 $1 {[%emt 0:00:01]} Qg6 {[%emt 0:00:00]} 48. Kh2 {[%emt 0:00:03]} ({Don't play} 48. Qxb6 Qe4+ 49. Kg1 Bg6 $16) (48. Ng2 $142 $1) 48... Kg7 $16 {[%emt 0:00:04]} 49. Qxb6 {[%emt 0:00:02]} Qe4 {[%emt 0:00:03]} 50. Qc7+ {[%emt 0:00:01]} (50. Ng2 $14 e5 51. f3 Qxf3 52. dxe5) 50... Kh6 {[%emt 0:00:01]} 51. Ng2 {[%emt 0:00:12]} Qxd4 {[%emt 0:00:04]} 52. Qe7 {[%emt 0:00:00]} Qe5+ $2 {[%emt 0:00:04][%mdl 8192]} (52... Bg6 $14) 53. f4 $18 {[%emt 0:00:02]} Qxb2 $2 {[%emt 0:00:02]} (53... Qb8 54. Qxf6+ Bg6) 54. Qxe8 {[%emt 0:00:01]} Qe2 {[%emt 0:00:01]} 55. Qh8+ {[%emt 0:00:02]} Kg6 {[%emt 0:00:01]} 56. Qg8+ {[%emt 0:00:00]} Kh6 {[%emt 0:00:05]} 57. Qf7 {[%emt 0:00:03]} 1-0

[Event "CCT Julius Baer-D3 2024"]
[Site "Online"]
[Date "2024.09.27"]
[Round "1.1"]
[White "Keymer, Vincent"]
[Black "Hakobyan, Aram"]
[Result "1-0"]
[ECO "E46"]
[WhiteElo "2794"]
[BlackElo "2639"]
[Annotator "TA"]
[PlyCount "105"]
[EventDate "2024.09.25"]
[EventType "swiss"]
[EventCountry "NET"]
[SourceTitle "playchess.com"]
[Source "ChessBase"]
[SourceQuality "1"]
[TimeControl "600+2"]

{[%evp 32,105,43,48,67,65,131,147,168,160,177,177,172,172,181,164,185,184,170,171,152,47,93,54,64,43,129,102,132,123,139,25,24,0,148,150,221,222,332,323,287,249,246,238,250,256,429,431,508,525,520,520,577,567,673,675,5189,882,2866,2720,2895,973,1569,827,1043,1044,841,785,1015,984,3768,3663,3315,3284,29988,29988]} 1. d4 {[%emt 0:00:02]} Nf6 {[%emt 0:00:07]} 2. c4 {[%emt 0:00:02]} e6 {[%emt 0:00:05]} 3. Nc3 {[%emt 0:00:00]} Bb4 {[%emt 0:00:01]} 4. e3 {[%emt 0:00:01]} O-O {[%emt 0:00:10]} 5. Bd2 {[%emt 0:00:02]} c5 {[%emt 0:00:28]} 6. a3 {[%emt 0:00:01] E46: Nimzo-Indian: Rubinstein: 4 e3 0-0 5 Ne2 without early Bd3.} Bxc3 {[%emt 0:00:00]} 7. Bxc3 {[%emt 0:00:00]} Ne4 {[%emt 0:00:01]} 8. Ne2 {[%emt 0:00:01]} b6 {[%emt 0:00:12]} 9. d5 {[%emt 0:00:01]} Re8 {[%emt 0:00:15]} 10. g3 {[%emt 0:00:14]} Bb7 {[%emt 0:01:24]} 11. Bg2 {[%emt 0:00:03]} exd5 {[%emt 0:00:01]} 12. cxd5 {[%emt 0:00:00]} d6 {[%emt 0:00:08]} 13. Bxe4 $146 {[%emt 0:00:03]} ({Predecessor:} 13. O-O Ba6 14. Bxe4 Rxe4 15. Re1 Bxe2 16. Qxe2 Nd7 17. f3 Re7 18. Qc4 a6 19. a4 {½-½ Butenandt,S (2126)-Schulze,L (2306) German Masters (Women) 2024 (8)}) 13... Rxe4 {[%emt 0:00:02]} 14. Nf4 {[%emt 0:00:06]} Qg5 {[%emt 0:01:39]} 15. Qh5 {[%emt 0:03:08]} h6 {[%emt 0:03:49]} 16. h4 {[%emt 0:00:13]} Qxh5 {[%emt 0:00:30]} 17. Nxh5 {[%emt 0:00:00]} f6 {[%emt 0:00:26]} 18. Bxf6 $1 {[%emt 0:00:20]} Bxd5 {[%emt 0:00:08]} (18... g6 $14 19. Nf4 Kf7) 19. Bxg7 $16 {[%emt 0:00:47]} Rxe3+ {[%emt 0:00:31]} 20. fxe3 {[%emt 0:00:39]} Bxh1 {[%emt 0:00:02]} 21. Bxh6 {[%emt 0:00:01]} Bf3 {[%emt 0:00:08]} 22. Nf6+ {[%emt 0:02:00]} Kf7 {[%emt 0:00:02]} 23. Kf2 $1 {[%emt 0:00:05]} Bb7 {[%emt 0:00:07]} 24. Bg5 {[%emt 0:00:04]} Nc6 {[%emt 0:00:20]} 25. Rd1 {[%emt 0:00:01]} Ke6 {[%emt 0:00:01]} 26. Nh5 {[%emt 0:00:07]} (26. g4 $16) 26... Ne5 {[%emt 0:00:04]} (26... Rf8+ $1 $14 27. Ke1 (27. Nf4+ Kd7 $16) 27... Ne5) 27. Ng7+ {[%emt 0:00:30]} Kd7 {[%emt 0:00:05]} 28. Bf4 {[%emt 0:00:16]} Ng4+ {[%emt 0:00:02]} ({Black should try} 28... Rf8 $14) 29. Ke2 $16 {[%emt 0:00:29]} d5 {[%emt 0:00:01]} 30. h5 $1 {[%emt 0:00:27]} Rh8 {[%emt 0:00:01] [#]} 31. Kf3 {[%emt 0:00:10]} ({White must play} 31. Rh1 $1 $16) 31... Nh2+ $11 {[%emt 0:00:02]} 32. Ke2 {[%emt 0:00:17]} ({Better is} 32. Kf2 $11) 32... Ng4 $1 $16 {[%emt 0:00:00] [#]} 33. Rh1 $1 {[%emt 0:00:05]} Rh7 {[%emt 0:00:09]} (33... Nf6 $16 34. Rh4 (34. h6 d4 $18) 34... Ba6+ 35. Kd2 Ne4+ 36. Ke1 Bc8) 34. h6 $18 {[%emt 0:00:04]} d4 {[%emt 0:00:01]} (34... Nf6 $142 35. Rh4 Ba6+ 36. Kf3 Bd3) 35. Rh4 $18 {[%emt 0:00:04]} Ba6+ {[%emt 0:00:04]} 36. Kd2 {[%emt 0:00:14]} dxe3+ {[%emt 0:00:00]} 37. Bxe3 {[%emt 0:00:01]} Ne5 {[%emt 0:00:02]} 38. Kc3 {[%emt 0:00:07]} Nf7 $2 {[%emt 0:00:03]} (38... Bb7 39. g4 Rh8) 39. g4 $18 {[%emt 0:00:04]} Ne5 {[%emt 0:00:03]} 40. g5 {[%emt 0:00:02]} Ng6 {[%emt 0:00:01]} 41. Re4 {[%emt 0:00:06]} Rh8 {[%emt 0:00:01]} 42. Re6 {[%emt 0:00:04]} Nh4 {[%emt 0:00:03]} 43. g6 {[%emt 0:00:10]} Kc7 {[%emt 0:00:05]} 44. Bg5 {[%emt 0:00:02]} (44. Ne8+ $142 Rxe8 45. Rxe8 Nxg6 46. Rg8) 44... Nf3 {[%emt 0:00:02]} 45. Bf4+ {[%emt 0:00:01]} Kd7 {[%emt 0:00:01]} 46. Rf6 {[%emt 0:00:04]} (46. Rd6+ $142 Kc8 47. Ne6) 46... Nd4 {[%emt 0:00:01]} 47. Kd2 {[%emt 0:00:04]} Nf3+ {[%emt 0:00:03]} 48. Ke3 {[%emt 0:00:02]} Nh4 {[%emt 0:00:00]} 49. Bg5 {[%emt 0:00:04]} Ng2+ {[%emt 0:00:02]} 50. Kf2 {[%emt 0:00:01]} Bb7 {[%emt 0:00:04]} 51. Nf5 {[%emt 0:00:01]} Re8 {[%emt 0:00:03]} 52. Rf7+ {[%emt 0:00:01]} Ke6 {[%emt 0:00:01]} 53. Ng7+ {[%emt 0:00:01]} 1-0

[Event "CCT Julius Baer-D3 2024"]
[Site "Online"]
[Date "2024.09.27"]
[Round "1.1"]
[White "Niemann, Hans Moke"]
[Black "Sarana, Alexey"]
[Result "1/2-1/2"]
[ECO "B53"]
[WhiteElo "2699"]
[BlackElo "2679"]
[Annotator "ChessBase"]
[PlyCount "164"]
[EventDate "2024.09.25"]
[EventType "swiss"]
[EventCountry "NET"]
[SourceTitle "playchess.com"]
[Source "ChessBase"]
[SourceQuality "1"]
[TimeControl "600+2"]

1. e4 {[%emt 0:00:17]} c5 {[%emt 0:00:03]} 2. Nf3 {[%emt 0:00:17]} d6 {[%emt 0:00:01]} 3. d4 {[%emt 0:00:45]} cxd4 {[%emt 0:00:00]} 4. Qxd4 {[%emt 0:00:01]} Nf6 {[%emt 0:00:05]} 5. h3 {[%emt 0:00:22]} Nc6 {[%emt 0:00:01]} 6. Qe3 {[%emt 0:00:01]} g6 {[%emt 0:00:00]} 7. Bc4 {[%emt 0:00:05]} Bg7 {[%emt 0:00:02]} 8. O-O {[%emt 0:00:01]} O-O {[%emt 0:00:01]} 9. Rd1 {[%emt 0:00:00]} Qb6 {[%emt 0:01:10]} 10. Qxb6 {[%emt 0:00:10]} axb6 {[%emt 0:00:01]} 11. Nc3 {[%emt 0:00:01]} Be6 {[%emt 0:00:01]} 12. Bxe6 {[%emt 0:00:06]} fxe6 {[%emt 0:00:00]} 13. Ng5 {[%emt 0:00:02]} Nd8 {[%emt 0:01:17]} 14. e5 {[%emt 0:00:02]} Ne8 {[%emt 0:00:03]} 15. exd6 {[%emt 0:01:34]} exd6 {[%emt 0:00:13]} 16. Be3 {[%emt 0:00:24]} Ra6 {[%emt 0:00:08]} 17. Bd4 {[%emt 0:00:32]} d5 {[%emt 0:00:06]} 18. Bxg7 {[%emt 0:00:33]} Nxg7 {[%emt 0:00:02]} 19. Re1 {[%emt 0:00:02]} h6 {[%emt 0:00:18]} 20. Nf3 {[%emt 0:00:02]} Nc6 {[%emt 0:00:00]} 21. Nb5 {[%emt 0:00:15]} Ra5 {[%emt 0:00:43]} 22. Nbd4 {[%emt 0:00:12]} Nxd4 {[%emt 0:00:29]} 23. Nxd4 {[%emt 0:00:00]} Kf7 {[%emt 0:00:00]} 24. a3 {[%emt 0:00:22]} Re8 {[%emt 0:00:06]} 25. Re5 {[%emt 0:00:07]} Nf5 {[%emt 0:00:02]} 26. Nf3 {[%emt 0:00:52]} d4 {[%emt 0:00:10]} 27. Rxa5 {[%emt 0:00:19]} bxa5 {[%emt 0:00:01]} 28. g4 {[%emt 0:00:00]} Nd6 {[%emt 0:00:07]} 29. Nxd4 {[%emt 0:00:03]} e5 {[%emt 0:00:00]} 30. Nf3 {[%emt 0:00:11]} a4 {[%emt 0:00:15]} 31. Re1 {[%emt 0:00:11]} Kf6 {[%emt 0:00:09]} 32. Nd2 {[%emt 0:00:01]} Ke6 {[%emt 0:00:37]} 33. Ne4 {[%emt 0:00:14]} Rc8 {[%emt 0:00:34]} 34. Nxd6 {[%emt 0:00:02]} Kxd6 {[%emt 0:00:00]} 35. Re2 {[%emt 0:00:00]} Rc4 {[%emt 0:00:03]} 36. Rd2+ {[%emt 0:00:11]} Ke6 {[%emt 0:00:01]} 37. Kg2 {[%emt 0:00:01]} h5 {[%emt 0:00:02]} 38. Kg3 {[%emt 0:00:04]} hxg4 {[%emt 0:00:03]} 39. hxg4 {[%emt 0:00:00]} g5 {[%emt 0:00:03]} 40. c3 {[%emt 0:00:12]} Rc8 {[%emt 0:00:01]} 41. f3 {[%emt 0:00:06]} Rh8 {[%emt 0:00:06]} 42. Rd1 {[%emt 0:00:19]} b6 {[%emt 0:00:12]} 43. Kg2 {[%emt 0:00:10]} b5 {[%emt 0:00:08]} 44. Kg3 {[%emt 0:00:01]} Rc8 {[%emt 0:00:02]} 45. Rh1 {[%emt 0:00:10]} Rd8 {[%emt 0:00:00]} 46. Rh6+ {[%emt 0:00:05]} Kf7 {[%emt 0:00:01]} 47. Rb6 {[%emt 0:01:51]} Rd5 {[%emt 0:00:02]} 48. c4 {[%emt 0:00:04]} bxc4 {[%emt 0:00:01]} 49. Rb4 {[%emt 0:00:00]} Rd2 {[%emt 0:00:05]} 50. Rxa4 {[%emt 0:00:09]} Rxb2 {[%emt 0:00:01]} 51. Rxc4 {[%emt 0:00:01]} Ra2 {[%emt 0:00:00]} 52. Ra4 {[%emt 0:00:04]} Kf6 {[%emt 0:00:02]} 53. Ra6+ {[%emt 0:00:02]} Kf7 {[%emt 0:00:01]} 54. a4 {[%emt 0:00:08]} Kg7 {[%emt 0:00:01]} 55. a5 {[%emt 0:00:02]} Kf7 {[%emt 0:00:01]} 56. Ra8 {[%emt 0:00:01]} Kg7 {[%emt 0:00:06]} 57. a6 {[%emt 0:00:01]} Kf7 {[%emt 0:00:01]} 58. Ra7+ {[%emt 0:00:06]} Kf6 {[%emt 0:00:01]} 59. Ra8 {[%emt 0:00:01]} Kf7 {[%emt 0:00:01]} 60. a7 {[%emt 0:00:01]} Kg7 {[%emt 0:00:01]} 61. Kh3 {[%emt 0:00:00]} Kh7 {[%emt 0:00:02]} 62. Kg3 {[%emt 0:00:03]} Kg7 {[%emt 0:00:02]} 63. Re8 {[%emt 0:00:05]} Rxa7 {[%emt 0:00:02]} 64. Rxe5 {[%emt 0:00:00]} Kf6 {[%emt 0:00:02]} 65. Re3 {[%emt 0:00:01]} Ra2 {[%emt 0:00:01]} 66. Re1 {[%emt 0:00:01]} Kg6 {[%emt 0:00:02]} 67. Rf1 {[%emt 0:00:01]} Rb2 {[%emt 0:00:02]} 68. Rf2 {[%emt 0:00:01]} Rb3 {[%emt 0:00:11]} 69. Re2 {[%emt 0:00:01]} Ra3 {[%emt 0:00:01]} 70. Kf2 {[%emt 0:00:01]} Kf6 {[%emt 0:00:02]} 71. Rb2 {[%emt 0:00:01]} Ra6 {[%emt 0:00:01]} 72. Rb3 {[%emt 0:00:02]} Re6 {[%emt 0:00:01]} 73. Re3 {[%emt 0:00:03]} Ra6 {[%emt 0:00:02]} 74. Rd3 {[%emt 0:00:03]} Re6 {[%emt 0:00:01]} 75. Rd4 {[%emt 0:00:01]} Re5 {[%emt 0:00:04]} 76. Rd6+ {[%emt 0:00:02]} Kf7 {[%emt 0:00:02]} 77. Rc6 {[%emt 0:00:00]} Re8 {[%emt 0:00:03]} 78. Rc4 {[%emt 0:00:03]} Kf6 {[%emt 0:00:02]} 79. Re4 {[%emt 0:00:02]} Ra8 {[%emt 0:00:02]} 80. Re2 {[%emt 0:00:04]} Ra3 {[%emt 0:00:01]} 81. Re3 {[%emt 0:00:02]} Ra2+ {[%emt 0:00:02]} 82. Re2 {[%emt 0:00:00]} Ra3 {[%emt 0:00:01]} 1/2-1/2

[Event "CCT Julius Baer-D3 2024"]
[Site "Online"]
[Date "2024.09.27"]
[Round "1.1"]
[White "Navara, David"]
[Black "Amin, Bassem"]
[Result "0-1"]
[ECO "C65"]
[WhiteElo "2681"]
[BlackElo "2636"]
[Annotator "ChessBase"]
[PlyCount "102"]
[EventDate "2024.09.25"]
[EventType "swiss"]
[EventCountry "NET"]
[SourceTitle "playchess.com"]
[Source "ChessBase"]
[SourceQuality "1"]
[TimeControl "600+2"]

1. e4 {[%emt 0:00:03]} e5 {[%emt 0:00:04]} 2. Nf3 {[%emt 0:00:01]} Nc6 {[%emt 0:00:01]} 3. Bb5 {[%emt 0:00:01]} Nf6 {[%emt 0:00:02]} 4. d3 {[%emt 0:00:00]} Bc5 {[%emt 0:00:02]} 5. Bg5 {[%emt 0:00:02]} h6 {[%emt 0:00:15]} 6. Bh4 {[%emt 0:00:01]} Nd4 {[%emt 0:00:37]} 7. Nxd4 {[%emt 0:00:07]} Bxd4 {[%emt 0:00:00]} 8. c3 {[%emt 0:00:01]} Bb6 {[%emt 0:00:01]} 9. Nd2 {[%emt 0:00:24]} c6 {[%emt 0:00:05]} 10. Ba4 {[%emt 0:00:01]} O-O {[%emt 0:00:05]} 11. O-O {[%emt 0:00:18]} d6 {[%emt 0:00:46]} 12. Nc4 {[%emt 0:00:26]} Be6 {[%emt 0:00:17]} 13. Bxf6 {[%emt 0:02:15]} Qxf6 {[%emt 0:00:23]} 14. Nxd6 {[%emt 0:00:01]} Rad8 {[%emt 0:02:33]} 15. Nf5 {[%emt 0:01:05]} Bxf5 {[%emt 0:00:07]} 16. exf5 {[%emt 0:00:00]} Qxf5 {[%emt 0:00:01]} 17. Bc2 {[%emt 0:00:02]} e4 {[%emt 0:01:43]} 18. d4 {[%emt 0:00:02]} c5 {[%emt 0:00:01]} 19. Qe2 {[%emt 0:01:23]} cxd4 {[%emt 0:00:11]} 20. Qxe4 {[%emt 0:00:46]} Qxe4 {[%emt 0:00:05]} 21. Bxe4 {[%emt 0:00:00]} Rfe8 {[%emt 0:00:55]} 22. Bxb7 {[%emt 0:00:14]} Re2 {[%emt 0:00:22]} 23. cxd4 {[%emt 0:02:43]} Rxd4 {[%emt 0:00:00]} 24. Rad1 {[%emt 0:00:35]} Rxd1 {[%emt 0:00:38]} 25. Rxd1 {[%emt 0:00:00]} Rxf2 {[%emt 0:00:07]} 26. Kh1 {[%emt 0:00:02]} Rxb2 {[%emt 0:00:03]} 27. Bd5 {[%emt 0:00:00]} Kf8 {[%emt 0:00:14]} 28. g3 {[%emt 0:00:16]} g6 {[%emt 0:00:18]} 29. Bb3 {[%emt 0:00:02]} Rf2 {[%emt 0:00:28]} 30. Rc1 {[%emt 0:00:01]} Ke7 {[%emt 0:00:11]} 31. Rc2 {[%emt 0:00:01]} Rf1+ {[%emt 0:00:03]} 32. Kg2 {[%emt 0:00:01]} Rg1+ {[%emt 0:00:00]} 33. Kf3 {[%emt 0:00:02]} h5 {[%emt 0:00:15]} 34. Re2+ {[%emt 0:00:07]} Kf6 {[%emt 0:00:02]} 35. Rc2 {[%emt 0:00:02]} Kg7 {[%emt 0:00:02]} 36. Re2 {[%emt 0:00:04]} Rf1+ {[%emt 0:00:10]} 37. Kg2 {[%emt 0:00:02]} Rg1+ {[%emt 0:00:02]} 38. Kf3 {[%emt 0:00:01]} g5 {[%emt 0:00:01]} 39. h3 {[%emt 0:00:01]} f5 {[%emt 0:00:02]} 40. Re6 {[%emt 0:00:06]} Rf1+ {[%emt 0:00:03]} 41. Kg2 {[%emt 0:00:02]} Rf2+ {[%emt 0:00:02]} 42. Kh1 {[%emt 0:00:01]} g4 {[%emt 0:00:03]} 43. hxg4 {[%emt 0:00:02]} hxg4 {[%emt 0:00:00]} 44. Bc4 {[%emt 0:00:03]} Rd2 {[%emt 0:00:03]} 45. Re7+ {[%emt 0:00:02]} Kf6 {[%emt 0:00:02]} 46. Re6+ {[%emt 0:00:01]} Kg5 {[%emt 0:00:01]} 47. Bb5 {[%emt 0:00:01]} Rxa2 {[%emt 0:00:04]} 48. Be8 {[%emt 0:00:02]} f4 {[%emt 0:00:02]} 49. Re5+ {[%emt 0:00:04]} Kf6 {[%emt 0:00:01]} 50. gxf4 {[%emt 0:00:00]} g3 {[%emt 0:00:00]} 51. Rg5 {[%emt 0:00:01]} Rh2# {[%emt 0:00:01]} 0-1